Cogmind - Beta 17 @@@ ROGUE MODE // 2026.07.31 @ 03:59:51 Player: KURIIRI Result: Self-destructed Performance ------------- Evolutions (6) 3000 Regions Visited (12) 2400 Robots Destroyed (233) 1165 Value Destroyed (10288) 10288 Prototype IDs (37) 740 Alien Tech Used (0) 0 Bonus (26817) 26817 TOTAL SCORE: 44410 Bonus ------- Triggered High Security 500 High Alert Combat Kills 3327 Follower Combat Kills 3178 Prayed to X0-1V1 5000 Major X0-1V1 Interference 9700 Subatomizer Sterilization 3000 Network Hubs Disabled 400 Registered with UFD 300 Met Optimus in HQ 500 Built Enhanced Grunts 300 A7 Reached Mainframe 300 Met R17 at Cetus 500 Friendly Fire -188 Cogmind --------- Core Integrity 804/1150 Matter 10/150 Energy 44/1210 System Corruption 10% Temperature Cool (0) Movement Rolling (140) Ox7 Location -4/Factory Parts ------- > --- POWER (2) -------- Light Antimatter Reactor Heavy Antimatter Reactor > --- PROPULSION (5) --- Armored Medium Treads Overtuned Huge Scrapsphere Overtuned Huge Scrapsphere > --- UTILITY (7) ------ Makeshift Microdissipator Network Huge Storage Unit Active Sensor Suite Improved Force Field > --- WEAPON (5) ------- Coil Gun Coil Gun Coil Gun Coil Gun Coil Gun > --- INVENTORY (25) --- Neutrino Core Light Antimatter Reactor Light Antimatter Reactor Centrium Heavy Treads Experimental Biometal Heavy Treads Advanced Heat Sink Improved Weapon Cycler Advanced Transmission Jammer Centrium Medium Armor Plating Centrium Medium Armor Plating Improved System Shield Overtuned Beamcaster Advanced Variable Charge Gun Coil Gun Coil Gun Coil Gun Overtuned Coil Gun Overtuned Coil Gun Micro-nuke Launcher Micro-nuke Launcher Micro-nuke Launcher Power Maul Peak State ------------ > --- POWER ------------ Neutrino Core Neutrino Core > --- PROPULSION ------- Centrium Heavy Treads Wheel Overtuned Huge Scrapsphere > --- UTILITY ---------- Advanced Cooling System Huge Storage Unit Improved Phase Shifter Centrium Medium Armor Plating Improved Force Field Improved Hacking Suite X0-1V1's Piety Tracker > --- WEAPON ----------- Advanced Variable Charge Gun Coil Gun Coil Gun Overtuned Coil Gun Railgun > --- INVENTORY -------- Light Antimatter Reactor Centrium Heavy Treads Experimental Biometal Heavy Treads Overtuned Huge Scrapsphere Advanced Heat Sink Advanced Heat Sink Improved Matter Compressor Centrium Medium Armor Plating System Shield Improved System Shield Field Laser Coil Gun Micro-nuke Launcher Micro-nuke Launcher Micro-nuke Launcher Powered Hammer Falx [Rating: 134] Favorites ----------- Power Fission Core Engine Reinforced Ion Engine Power Core Fission Core Reactor Light Antimatter Reactor Propulsion Improved Treads Treads Improved Treads Leg Aluminum Leg Wheel Overtuned Huge Scrapsphere Flight Unit VTOL Module Utility Large Storage Unit Device X0-1V1's Piety Tracker Storage Large Storage Unit Processor Armor Integrity Analyzer Hackware Improved Hacking Suite Protection Centrium Medium Armor Plating Weapon Overtuned Coil Gun Energy Gun Arc Projector Ballistic Gun Overtuned Coil Gun Ballistic Cannon Magnetic Acceleration Cannon Launcher Grenade Launcher Special Weapon Improved Remote Datajack Impact Weapon Powered Hammer Slashing Weapon Falx Build | -11 -10 -10 -7 -7 -5 -5 -5 -5 -5 -5 -5 -4 ------- Run | Yrd Mat Sub Rec Scr Fac Was Fac Ext Cet Arc Hub Fac Slots Evolved 12 | . . . . . 10 . . . . . . 2 Power . | . . . . . . . . . . . . . Propulsion 3 | . . . . . 3 . . . . . . . Utility 6 | . . . . . 4 . . . . . . 2 Weapon 3 | . . . . . 3 . . . . . . . Parts Attached 159 | 3 10 5 3 12 31 1 20 20 8 11 4 31 Power 20 | . 1 1 . 2 3 . 1 5 1 . 1 5 Engine 6 | . 1 1 . 2 . . . 2 . . . . Core 11 | . . . . . 3 . 1 2 1 . 1 3 Reactor 3 | . . . . . . . . 1 . . . 2 Propulsion 41 | 2 4 2 1 5 11 . 7 3 2 2 . 2 Treads 25 | 2 4 2 1 1 6 . 2 2 2 2 . 1 Leg . | . . . . . . . . . . . . . Wheel 14 | . . . . 2 5 . 5 1 . . . 1 Hover . | . . . . . . . . . . . . . Flight 2 | . . . . 2 . . . . . . . . Utility 50 | 1 3 . 1 4 8 1 6 5 3 7 3 8 Device 32 | 1 1 . . 4 5 1 4 3 . 6 . 7 Storage 4 | . 2 . . . 1 . 1 . . . . . Processor 1 | . . . . . . . . . 1 . . . Hackware 1 | . . . . . . . . . . . 1 . Protection 12 | . . . 1 . 2 . 1 2 2 1 2 1 Artifact . | . . . . . . . . . . . . . Weapon 48 | . 2 2 1 1 9 . 6 7 2 2 . 16 Energy Gun 8 | . . 1 1 . 1 . 1 2 1 . . 1 Energy Cannon . | . . . . . . . . . . . . . Ballistic Gun 29 | . . . . . 6 . 4 5 1 2 . 11 Ballistic Cannon 3 | . 1 . . 1 . . 1 . . . . . Launcher 5 | . 1 1 . . 1 . . . . . . 2 Special Weapon 1 | . . . . . . . . . . . . 1 Impact Weapon 1 | . . . . . 1 . . . . . . . Slashing Weapon 1 | . . . . . . . . . . . . 1 Piercing Weapon . | . . . . . . . . . . . . . Special Melee Weapon . | . . . . . . . . . . . . . Unidentified Prototypes 13 | . 1 . . . 2 . 1 . 4 3 . 2 Corrupted Parts 2 | . . . . . . . 1 . . 1 . . System Corruption 12 | . . . . . . . 10 . . 2 . . Parts Lost 41 | . 1 1 2 . 7 . 3 5 . . 9 13 Power 11 | . 1 1 1 . 1 . . 2 . . 3 2 Propulsion 5 | . . . . . 3 . . . . . 1 1 Utility 12 | . . . 1 . 1 . 1 2 . . 1 6 Weapon 13 | . . . . . 2 . 2 1 . . 4 4 Highest Loss Streak 6 | . 1 1 2 . 2 . 2 2 . . 4 6 To Critical Strikes 2 | . . . . . . . . 1 . . . 1 Average Backups 14 | 6 8 14 14 13 12 12 10 18 19 20 20 18 Power 1 | 1 1 . 1 . 2 1 1 2 2 1 1 1 Propulsion 4 | 4 3 7 6 4 1 1 2 4 3 2 3 2 Utility 5 | . 1 2 2 3 6 8 5 7 8 11 10 6 Weapon 3 | 1 1 3 4 3 2 2 1 4 6 4 6 7 Tool/Special . | . . . . . . . . . . . . . Unused Backups 62 | . 7 12 1 15 3 1 1 5 1 5 . 11 Power 5 | . . . . 3 . . . . . . . 2 Propulsion 11 | . 2 6 . 2 . . . 1 . . . . Utility 20 | . 3 1 1 4 3 1 . 1 . 1 . 5 Weapon 25 | . 2 5 . 5 . . 1 3 1 4 . 4 Tool/Special 1 | . . . . 1 . . . . . . . . Average Slot Usage (%) 86 | . 97 94 85 86 84 86 84 82 82 81 77 76 Engine 8 | . 11 13 16 19 . 5 . 5 . . . . Core 4 | . . . . . 10 5 9 2 10 10 9 7 Treads 18 | . 28 32 28 23 12 11 10 9 12 11 10 4 Wheel 5 | . . . . 2 11 17 15 8 5 5 5 8 Device 13 | . 14 15 2 13 16 14 11 10 6 12 9 14 Storage 9 | . 14 14 14 12 5 5 5 5 5 5 5 5 Protection 2 | . . . 10 1 1 . 4 5 9 3 6 5 Energy Gun 4 | . . 8 6 6 1 . 3 4 . . . 3 Ballistic Gun 12 | . 18 . . . 18 23 16 20 28 29 26 17 Ballistic Cannon 2 | . 6 3 8 4 1 . . . . . . . Launcher 1 | . 2 5 . . . . . . . . . 1 Peak Build Rating 134 | 7 23 26 24 35 87 83 87 101 118 128 128 134 Average Rating 60 | 6 7 23 14 27 77 79 80 89 110 123 117 119 On Entrance 60 | 6 7 23 24 15 34 83 80 80 101 118 128 83 Avg Prop Armor Cover (%) 9 | . . . . 12 9 11 10 6 10 10 10 8 Naked Turns . | . . . . . . . . . . . . . Heaviest Build 161 | 14 30 38 37 48 93 89 140 150 144 144 145 161 Greatest Support 88 | 40 46 66 43 46 64 46 84 86 88 80 20 80 Greatest Overweight (x) 16 | . . . . 2 4 1 5 6 7 7 7 16 Average Overweight (x) 1 | . . . . . 1 1 1 3 6 4 6 5 Largest Inventory Capacity 25 | 8 15 15 15 15 15 15 25 25 25 25 25 25 Average Capacity 17 | 8 9 15 15 14 15 15 15 25 25 25 25 25 Most Carried 25 | 7 15 15 15 15 15 15 16 25 25 25 25 25 Average Carried 16 | 6 8 14 14 13 13 14 14 23 23 24 24 21 Final Capacity 25 | 8 15 15 15 15 15 15 25 25 25 25 25 25 Final Carried 25 | 5 15 15 15 15 15 15 16 23 25 25 21 24 Scrap Suit Usage (%) 15 | . . . . . 37 100 38 44 100 6 11 1 Parts Cannibalized 48 | . . . . . 9 . 13 10 3 . 8 5 Class Distribution -------------------- 48% | Mutant 26% | Scavenger-Scrapper 12% | Scavenger-Tank 3% | Scavenger-Gunner Dominant Class ---------------- Mutant | -10/Materials Mutant | -10/Subcaves Mutant | -7/Recycling Mutant | -7/Scraptown Derelict-Tank | -5/Factory Scavenger-Gunner | -5/Waste Scavenger-Tank | -5/Factory Scavenger-Tank | -5/Extension Scavenger-Scrapper | -5/Cetus Scavenger-Scrapper | -5/Archives Scavenger-Scrapper | -5/Hub_04(d) Scavenger-Scrapper | -4/Factory Resources | -11 -10 -10 -7 -7 -5 -5 -5 -5 -5 -5 -5 -4 ----------- Run | Yrd Mat Sub Rec Scr Fac Was Fac Ext Cet Arc Hub Fac Matter Collected 10656 | 266 449 572 69 568 1556 . 1812 2231 362 648 614 1509 Remotely . | . . . . . . . . . . . . . Salvage Created 11448 | 170 615 341 43 . 1861 . 2861 1864 621 331 235 2506 Parts 522 | 15 36 26 4 . 90 . 119 76 23 18 13 102 Haulers Intercepted 11 | . 2 . . . 2 . 3 2 . . . 2 Recyclers Shooed 13 | 1 2 . . . . . 5 4 . . . 1 Parts Field Recycled . | . . . . . . . . . . . . . Retrieved Matter . | . . . . . . . . . . . . . Parts Self-Destructed 9 | . . 9 . . . . . . . . . . Prevented . | . . . . . . . . . . . . . Parts Restored . | . . . . . . . . . . . . . Kills | -11 -10 -10 -7 -7 -5 -5 -5 -5 -5 -5 -5 -4 ------- Run | Yrd Mat Sub Rec Scr Fac Was Fac Ext Cet Arc Hub Fac Combat Hostiles Destroyed 162 | . 13 15 1 . 27 . 29 21 8 2 4 42 Guns 119 | . 11 3 . . 24 . 28 21 8 2 4 18 Cannons 3 | . 2 . 1 . . . . . . . . . AOE 40 | . . 12 . . 3 . 1 . . . . 24 Classes Destroyed 25 | 2 6 3 1 . 5 . 1 3 . . . 4 Worker 12 | . . . . . 2 . 7 1 . . . 2 Builder 13 | . 1 . . . 2 . 3 2 . . . 5 Tunneler 6 | 5 . . . . 1 . . . . . . . Hauler 11 | . 2 . . . 2 . 3 2 . . . 2 Recycler 10 | 1 1 . . . 1 . 5 1 . . . 1 Mechanic 1 | . . . . . . . . . . . . 1 Operator 9 | . 1 . . . . . . 3 . 4 . 1 Drone 1 | . . . . . . . . 1 . . . . Turret 1 | . . 1 . . . . . . . . . . Watcher 9 | . 1 . . . 2 . 2 . 1 . . 3 Swarmer 21 | . 6 4 . . 6 . 5 . . . . . Saboteur 2 | . . . . . . . . 1 . . . 1 Grunt 61 | . 7 . . . 12 . 14 9 1 . . 18 Brawler 1 | . . . . . . . 1 . . . . . Duelist 2 | . . . . . 1 . . . . . . 1 Protector 1 | . . . . . . . . . . . . 1 Sentry 19 | . . . 1 . 1 . 4 5 3 2 2 1 Specialist 2 | . . . . . . . . . . . . 2 Hunter 19 | . . . . . 1 . 5 2 . . 1 10 Programmer 14 | . . . . . 5 . . 2 . . 1 6 Heavy 2 | . . . . . 1 . . . . . . 1 Behemoth 1 | . . . . . . . . 1 . . . . Cetus Guard 4 | . . . . . . . . . 4 . . . Artisan 1 | . . 1 . . . . . . . . . . Subdweller 11 | . . 11 . . . . . . . . . . Scrapoid 1 | . . . . . . . . . . . . 1 Best Kill Streak 13 | 4 7 4 1 . 6 . 7 6 4 3 2 13 Combat Bots Only 8 | . 7 4 1 . 6 . 6 6 3 1 2 8 Max Kills in Single Turn 7 | 1 1 3 1 . 3 . 3 2 2 1 1 7 Gunslinging 1 | . . . . . 1 . 1 1 1 . . . Exploded 7 | . . 3 . . 2 . 1 . . . . 7 Melee . | . . . . . . . . . . . . . Uniques/NPCs Destroyed . | . . . . . . . . . . . . . Combat | -11 -10 -10 -7 -7 -5 -5 -5 -5 -5 -5 -5 -4 -------- Run | Yrd Mat Sub Rec Scr Fac Was Fac Ext Cet Arc Hub Fac Hostile Shots Fired 1246 | . 64 74 52 . 138 . 178 202 20 4 115 399 Missed 361 | . 16 30 15 . 40 . 52 65 7 . 25 111 Hits 885 | . 48 44 37 . 98 . 126 137 13 4 90 288 Melee 38 | . . . 7 . . . . 21 . . . 10 Projectile 847 | . 48 44 30 . 98 . 126 116 13 4 90 278 AOE 1 | . . . . . . . . . . . 1 . Critical Strikes 53 | . . 1 . . 5 . 7 5 4 . 6 25 Part Disruptions 2 | . . . . . . . . . . . 2 . Damage Taken 15311 | . 480 673 256 . 1830 . 2300 1985 424 91 2977 4295 Core 1105 | . 94 139 26 . 107 . 109 172 27 . 85 346 Absorbed by Shields 2193 | . . . . . 222 . 103 492 . . . 1376 Reduced by Siege Mode 113 | . . . . . . . . . . . . 113 Redirected to Shielding 14 | . . . . . . . . 14 . . . . Ignored by Resistances 1010 | . . . . . 113 . 147 141 32 12 113 452 Regen/Repaired (Parts) 622 | . 202 . . . 78 . 113 93 21 . 69 46 Core Remaining (%) 90 | 100 . . . 92 . . . . . . 79 . Volleys Fired 557 | 14 66 75 11 . 70 1 86 92 18 14 18 92 Largest 5 | 2 2 1 1 . 4 4 4 5 5 5 5 5 Hottest 241 | 40 50 60 30 . 148 124 164 241 240 172 172 234 Shots Fired 1693 | 28 120 86 12 . 238 5 291 363 87 70 87 306 Gun 1579 | 28 102 32 1 . 230 5 291 363 87 70 87 283 Cannon 46 | . 12 18 11 . 5 . . . . . . . Launcher 67 | . 6 36 . . 3 . . . . . . 22 Special 1 | . . . . . . . . . . . . 1 Kinetic 1443 | 28 114 18 11 . 225 5 273 286 86 70 87 240 Thermal 171 | . . 32 . . . . 18 77 1 . . 43 Explosive 67 | . 6 36 . . 3 . . . . . . 22 Electromagnetic 11 | . . . 1 . 10 . . . . . . . Robot Hit Streak 23 | 6 11 15 3 . 18 7 11 11 9 13 7 23 Robot Miss Streak 7 | 2 2 2 4 . 7 1 7 5 3 6 5 5 Penetration Max 2 | . . . . . 1 . 1 2 1 1 2 1 Secondary Targets 33 | . . . . . 4 . 9 8 7 . 2 3 Max Gunslinging Chain 2 | . . . . . 1 . 2 2 2 . 1 1 Shots Hit Robots 964 | 17 79 37 6 . 124 4 163 204 63 41 41 185 Core Hits 534 | 8 29 28 3 . 64 1 91 91 29 19 22 149 Critical Kills 13 | . . 1 . . 3 . 1 2 4 . . 2 Critical Parts Destroyed 27 | . . . . . 4 . 2 7 3 1 3 7 Critical Strikes 52 | . . 1 . . 7 . 3 14 7 1 3 16 Burn 11 | . . . . . . . . 5 . . . 6 Destroy 41 | . . 1 . . 7 . 3 9 7 1 3 10 Melee Attacks 14 | . . . . . 4 . 9 1 . . . . Impact 14 | . . . . . 4 . 9 1 . . . . Slashing . | . . . . . . . . . . . . . Piercing . | . . . . . . . . . . . . . Sneak Attacks 2 | . . . . . 1 . 1 . . . . . Combat Hostiles . | . . . . . . . . . . . . . Follow-up Attacks . | . . . . . . . . . . . . . Damage Inflicted 33436 | 188 927 1751 102 . 4307 98 4882 5589 1790 1237 1690 10875 Guns 23776 | 188 742 246 . . 3078 98 4654 5589 1790 1237 1658 4496 Cannons 406 | . 130 116 102 . 25 . 33 . . . . . Explosions 8947 | . 46 1380 . . 1099 . 43 . . . . 6379 Melee 212 | . . . . . 105 . 107 . . . . . Ramming 95 | . 9 9 . . . . 45 . . . 32 . Kinetic 21752 | 188 872 116 102 . 2954 98 4492 4527 1790 1237 1658 3718 Thermal 2714 | . . 246 . . 433 . 195 1062 . . . 778 Explosive 8514 | . 46 1380 . . 666 . 43 . . . . 6379 Electromagnetic 149 | . . . . . 149 . . . . . . . Impact 212 | . . . . . 105 . 107 . . . . . Slashing . | . . . . . . . . . . . . . Piercing . | . . . . . . . . . . . . . Highest Corruption 29 | . . 19 9 . 4 19 29 14 11 11 29 10 Average Corruption 12 | . . 5 9 . 3 12 23 11 11 7 13 6 Corruption Purged 20 | . . . . . . . 5 4 . 11 . . Corruption Blocked . | . . . . . . . . . . . . . Effects 218 | . . 15 8 . 11 6 89 47 12 10 4 16 Message Errors 58 | . . 3 4 . 1 2 26 11 6 1 1 3 Matter Fused 42 | . . 4 . . 3 3 13 13 1 3 . 2 Heat Flow Errors 12 | . . 1 . . . . 6 1 1 1 . 2 Energy Discharges 19 | . . 2 1 . . . 6 5 2 . . 3 Parts Rejected 7 | . . . . . 1 . 2 2 . 1 . 1 Data Loss (minor) 20 | . . 1 2 . 3 . 4 6 2 1 1 . Data Loss (major) 14 | . . 1 . . 2 . 6 2 . 2 1 . Misfires 6 | . . 2 1 . . 1 2 . . . . . Alerts 4 | . . 1 . . . . 1 1 . . . 1 Misdirections 6 | . . . . . . . 5 . . . 1 . Weapon Failures 30 | . . . . . 1 . 18 6 . 1 . 4 Overload Shots 1 | . . . . . . . . . 1 . . . Overflow Damage 361 | . . 13 . . 26 . 52 . . . . 270 Projectiles 1 | . . 1 . . . . . . . . . . Explosions 301 | . . 12 . . 19 . . . . . . 270 Melee 59 | . . . . . 7 . 52 . . . . . Knockbacks 8 | . 3 3 . . 1 . 1 . . . . . Impact 1 | . . . . . . . 1 . . . . . Kinetic 7 | . 3 3 . . 1 . . . . . . . Secondary . | . . . . . . . . . . . . . Self-Inflicted Damage 179 | . . 28 . . 11 . 42 . . . 16 82 Shots 7 | . . 3 . . 1 . 1 . . . . 2 Rammed 8 | . 3 2 . . . . 1 . . . 2 . Targets Rammed 10 | . 4 3 . . . . 1 . . . 2 . Kicked . | . . . . . . . . . . . . . Crushed 2 | . 1 1 . . . . . . . . . . Highest Temperature 475 | . 12 212 68 . 398 84 400 390 475 352 367 402 Average Temperature 104 | . 6 94 31 . 59 41 96 96 206 93 114 137 Received Heat Transfer 2456 | . 177 156 78 . 359 . 624 382 63 . 123 494 Effects 14 | . . . . . . . 2 4 5 . 1 2 Shutdowns 7 | . . . . . . . 2 . 4 . . 1 Energy Bleed 2 | . . . . . . . . 1 . . . 1 Interference 3 | . . . . . . . . 3 . . . . Matter Decay 1 | . . . . . . . . . 1 . . . Damage (minor) 1 | . . . . . . . . . . . 1 . Siege Activations 5 | . . . . . . . . . . . . 5 Total Turns 70 | . . . . . . . . . . . . 70 Longest Duration 31 | . . . . . . . . . . . . 31 Martial Activations . | . . . . . . . . . . . . . Shielding Activations . | . . . . . . . . . . . . . Robots Disrupted . | . . . . . . . . . . . . . Combat Hostiles . | . . . . . . . . . . . . . Robots Corrupted 2 | . . . . . 1 . 1 . . . . . Combat Hostiles . | . . . . . . . . . . . . . Parts Fried 7 | . . . . . 2 . 2 1 2 . . . Impact Corruptions 4 | . . . . . 1 . 3 . . . . . Robots Melted . | . . . . . . . . . . . . . Combat Hostiles . | . . . . . . . . . . . . . Parts Melted 15 | . . . . . . . 5 8 . . . 2 Heat Transferred 5465 | . . 300 . . 250 . 370 2697 . . . 1848 Parts Sabotaged 2 | . . . . . . . . 2 . . . . Parts Stolen 2 | . . . . . . . . 2 . . . . Parts Stripped . | . . . . . . . . . . . . . Power Chain Reactions . | . . . . . . . . . . . . . Alert | -11 -10 -10 -7 -7 -5 -5 -5 -5 -5 -5 -5 -4 ------- Run | Yrd Mat Sub Rec Scr Fac Was Fac Ext Cet Arc Hub Fac Maximum Alert Level 5 | . 1 . . . 3 1 3 5 5 4 3 4 Low Security (%) 25 | 100 96 . 100 . 47 . 6 . . . . . Level 1 10 | . 3 . . . 26 100 7 . . . 16 16 Level 2 20 | . . . . . 5 . 50 43 . . 17 35 Level 3 27 | . . . . . 19 . 36 32 . 51 65 28 Level 4 12 | . . . . . . . . 10 61 48 . 19 Level 5 1 | . . . . . . . . 12 1 . . . High Security 1 | . . . . . . . . . 37 . . . Max Security . | . . . . . . . . . . . . . Sterilizations 1 | . . . . . . . 1 . . . . . Peak Influence 2122 | 15 200 . 41 . 1061 362 892 2122 1924 1294 859 1562 Initial 1183 | . . . . . . 362 198 436 1183 1100 315 323 Average 636 | 3 112 . 6 . 361 325 618 902 1484 1093 676 743 Influence Increases 10585 | 30 493 316 62 . 1819 2 1320 2508 921 300 825 1989 Destroy 0b10 Robot/C 4500 | . 260 120 60 . 760 . 600 1120 320 80 280 900 Destroy 0b10 Robot/NC 440 | 30 30 . . . 80 . 100 70 10 20 15 85 Destroy Leader 752 | . 66 . . . 166 . 110 174 10 . 72 154 Allied During Kill 1521 | . . 1 2 . 143 . 8 775 212 100 244 36 Successful Hack 68 | . 6 . . . 21 . 5 19 . . 12 5 Select Force Hacks 60 | . 60 . . . . . . . . . . . Disable Machine 555 | . . . . . 225 . 60 30 15 60 60 105 Anti-Garrison Action 150 | . . . . . 150 . . . . . . . Destroy Structure 1036 | . 26 . . . 184 2 138 80 62 40 112 392 Partial Spotted 30 | . . . . . 15 . . . . . 15 . Lose Combat Pursuer 435 | . 45 195 . . 75 . 45 30 . . 15 30 Miscellaneous 1038 | . . . . . . . 254 210 292 . . 282 Influence Decreases 9360 | 30 423 386 62 . 782 755 712 1286 1111 1653 1067 1093 Entered New Map 4261 | . . 34 . . . 675 86 456 931 1155 587 337 Time Decay 3609 | 30 413 342 42 . 502 60 526 490 100 458 230 416 Lost Part 410 | . 10 10 20 . 70 . 30 50 . . 90 130 Lost Ally 630 | . . . . . 60 20 70 140 80 40 160 60 Purge Threat 450 | . . . . . 150 . . 150 . . . 150 Squads Dispatched 57 | . 4 . . . 12 . 9 10 5 . 6 11 Investigation 16 | . 2 . . . 6 . 1 2 1 . 1 3 Extermination 6 | . . . . . 2 . 1 . . . 1 2 Reinforcement 19 | . 2 . . . 2 . 1 6 . . 4 4 Assault 13 | . . . . . 2 . 3 2 4 . . 2 Garrison 3 | . . . . . . . 3 . . . . . Intercept . | . . . . . . . . . . . . . Searches Triggered . | . . . . . . . . . . . . . Construction Impeded 7 | . . . . . 1 . . 3 . . 1 2 Haulers Reinforced 2 | . . . . . . . 1 . . . . 1 Active Scanning Responses . | . . . . . . . . . . . . . Cargo Convoy Interrupts 1 | . . . . . . . . . . . . 1 Stealth | -11 -10 -10 -7 -7 -5 -5 -5 -5 -5 -5 -5 -4 --------- Run | Yrd Mat Sub Rec Scr Fac Was Fac Ext Cet Arc Hub Fac Distress Signals 22 | . 1 . . . 6 . 5 1 2 . 3 4 Communications Jammed . | . . . . . . . . . . . . . Distress Signals . | . . . . . . . . . . . . . Times Spotted 339 | . 25 23 3 . 47 4 42 60 17 12 42 64 Peak Tracking Total 18 | . 6 4 1 . 5 4 6 10 5 2 18 12 Tactical Retreats 16 | . 1 5 . . 4 . 3 1 . . 1 1 Traps | -11 -10 -10 -7 -7 -5 -5 -5 -5 -5 -5 -5 -4 ------- Run | Yrd Mat Sub Rec Scr Fac Was Fac Ext Cet Arc Hub Fac Traps Triggered 10 | . . 1 . . 4 . 3 1 . . 1 . Indirectly . | . . . . . . . . . . . . . Trap Hack Attempts . | . . . . . . . . . . . . . Triggered . | . . . . . . . . . . . . . Disarmed . | . . . . . . . . . . . . . Reprogrammed . | . . . . . . . . . . . . . Reused . | . . . . . . . . . . . . . Traps Extracted . | . . . . . . . . . . . . . Installed . | . . . . . . . . . . . . . Triggered . | . . . . . . . . . . . . . Most Traps Carried 1 | . . 1 . . . . . . . . . . Machines | -11 -10 -10 -7 -7 -5 -5 -5 -5 -5 -5 -5 -4 ---------- Run | Yrd Mat Sub Rec Scr Fac Was Fac Ext Cet Arc Hub Fac Machines Disabled 39 | . . . . . 16 . 4 3 1 4 4 7 Max in Single Turn 4 | . . . . . 4 . 1 1 1 2 2 4 Garrison Access 5 | . . . . . 1 . 4 . . . . . Network Hub 2 | . . . . . . . . . . . 2 . Machines Repaired . | . . . . . . . . . . . . . Machines Dismantled . | . . . . . . . . . . . . . Machines Sabotaged . | . . . . . . . . . . . . . Overloaded Fab Kills . | . . . . . . . . . . . . . Hacking | -11 -10 -10 -7 -7 -5 -5 -5 -5 -5 -5 -5 -4 --------- Run | Yrd Mat Sub Rec Scr Fac Was Fac Ext Cet Arc Hub Fac Machines Accessed 56 | . 7 2 3 5 12 . 6 12 . . 4 5 Terminals 30 | . 4 . 3 . 7 . 1 10 . . 4 1 Fabricators 1 | . . . . . 1 . . . . . . . Repair Stations 3 | . 1 . . . . . . . . . . 2 Recycling Units 12 | . 2 . . . 3 . 3 2 . . . 2 Scanalyzers 2 | . . . . . 1 . 1 . . . . . Garrison Access 1 | . . . . . . . 1 . . . . . Total Hacks 136 | . 19 4 4 21 28 . 10 24 . . 8 18 Successful 64 | . 8 4 . 21 11 . 3 9 . . 1 7 Failed 72 | . 11 . 4 . 17 . 7 15 . . 7 11 Catastrophic 18 | . 2 . 4 . 2 . 2 5 . . 3 . Database Lockouts . | . . . . . . . . . . . . . Manual 68 | . 14 . 4 . 15 . 7 12 1 . 7 8 Terminals 72 | . 10 . 4 . 20 . 3 21 . . 8 6 Fabricators 2 | . . . . . 2 . . . . . . . Repair Stations 13 | . 5 . . . . . . . . . . 8 Recycling Units 20 | . 4 . . . 5 . 4 3 . . . 4 Scanalyzers 3 | . . . . . 1 . 2 . . . . . Garrison Access 1 | . . . . . . . 1 . . . . . Terminal Hacks 39 | . 2 4 . 21 3 . . 7 . . . 2 Record 23 | . . 3 . 20 . . . . . . . . Robot Analysis 1 | . 1 . . . . . . . . . . . Open Door 4 | . . . . . . . . 4 . . . . Branch Access Points 1 | . . . . . . . . . . . . 1 Terminal Index 1 | . . . . . 1 . . . . . . . Alert Level 2 | . . . . . . . . 2 . . . . Unreport Threat 3 | . . . . . 1 . . 1 . . . 1 Locate Traps 2 | . 1 . . . 1 . . . . . . . Proto ID Catalog 2 | . . 1 . 1 . . . . . . . . Fabricator Hacks 1 | . . . . . 1 . . . . . . . Network Status 1 | . . . . . 1 . . . . . . . Repair Station Hacks 6 | . 4 . . . . . . . . . . 2 Scan Component 4 | . 2 . . . . . . . . . . 2 Repair 2 | . 2 . . . . . . . . . . . Recycling Unit Hacks . | . . . . . . . . . . . . . Scanalyzer . | . . . . . . . . . . . . . Garrison Access Hacks . | . . . . . . . . . . . . . Unauthorized Hacks 17 | . 2 . . . 6 . 3 2 . . 1 3 Terminals 6 | . . . . . 2 . 1 1 . . 1 1 Track 1 | . . . . . . . . . . . 1 . Botnet 4 | . . . . . 1 . 1 1 . . . 1 Operators 1 | . . . . . 1 . . . . . . . Fabricators 1 | . . . . . 1 . . . . . . . Liberate 1 | . . . . . 1 . . . . . . . Repair Stations . | . . . . . . . . . . . . . Recycling Units 10 | . 2 . . . 3 . 2 1 . . . 2 Tunnel 2 | . 2 . . . . . . . . . . . Fedlink 5 | . . . . . 2 . 2 . . . . 1 Scrapoids 3 | . . . . . 1 . . 1 . . . 1 Scanalyzers . | . . . . . . . . . . . . . Garrison Access . | . . . . . . . . . . . . . Data Cores Recovered 2 | . 1 . . . . . . . . . 1 . Used 1 | . 1 . . . . . . . . . . . Hacking Detections 39 | . 6 . 3 . 10 . 4 9 . . 4 3 Full Trace Events 7 | . 2 . 1 . 1 . 1 1 . . 1 . Feedback Events . | . . . . . . . . . . . . . Feedback Blocked . | . . . . . . . . . . . . . Robot Schematics Acquired . | . . . . . . . . . . . . . Robots Built . | . . . . . . . . . . . . . Authchips . | . . . . . . . . . . . . . Time . | . . . . . . . . . . . . . Total Robot Build Rating . | . . . . . . . . . . . . . Part Schematics Acquired . | . . . . . . . . . . . . . Parts Built . | . . . . . . . . . . . . . Authchips . | . . . . . . . . . . . . . Time . | . . . . . . . . . . . . . Total Part Build Rating . | . . . . . . . . . . . . . Part Studies Acquired . | . . . . . . . . . . . . . Parts Repaired 2 | . 2 . . . . . . . . . . . Time 52 | . 52 . . . . . . . . . . . Parts Recycled . | . . . . . . . . . . . . . Recycled Matter . | . . . . . . . . . . . . . Retrieved Matter . | . . . . . . . . . . . . . Retrieved Components . | . . . . . . . . . . . . . Parts Scanalyzed . | . . . . . . . . . . . . . Part Schematics Acquired . | . . . . . . . . . . . . . Parts Damaged . | . . . . . . . . . . . . . Bothacking | -11 -10 -10 -7 -7 -5 -5 -5 -5 -5 -5 -5 -4 ------------ Run | Yrd Mat Sub Rec Scr Fac Was Fac Ext Cet Arc Hub Fac Used RIF Installer . | . . . . . . . . . . . . . Robots Hacked 1 | . . . . . . . . . . . . 1 Non-combat 1 | . . . . . . . . . . . . 1 Combat . | . . . . . . . . . . . . . Robot Hacks Applied 1 | . . . . . . . . . . . . 1 find_chute 1 | . . . . . . . . . . . . 1 Relay Couplers Released 4 | . . . . . 2 . 2 . . . . . Machine Destruction 4 | . . . . . 2 . 2 . . . . . Fabnet Peak Effective % . | . . . . . . . . . . . . . Robots Rewired 5 | . . . . . . . . 5 . . . . Allies Hacked . | . . . . . . . . . . . . . Hacks Repelled . | . . . . . . . . . . . . . Allies | -11 -10 -10 -7 -7 -5 -5 -5 -5 -5 -5 -5 -4 -------- Run | Yrd Mat Sub Rec Scr Fac Was Fac Ext Cet Arc Hub Fac Total Allies 41 | . . 1 1 . 5 1 3 17 5 . 3 5 Largest Group 10 | . . 1 1 . 5 1 3 10 8 8 5 5 Highest-Rated Group 711 | . . 90 57 . 238 31 126 476 711 711 423 238 Highest-Rated Ally 159 | . . 90 57 . 50 31 42 159 153 153 96 50 Initial UFD Resources 53 | . . . . . 38 49 49 53 50 50 50 53 Total Orders 10 | . . . . . 3 . 5 . . . 2 . STAY 2 | . . . . . . . . . . . 2 . EXPLORE 6 | . . . . . 2 . 4 . . . . . RETURN 2 | . . . . . 1 . 1 . . . . . Ally Attacks 509 | . . 2 4 . 48 13 9 238 58 24 70 43 Total Damage 12025 | . . 102 110 . 1625 190 335 5222 1465 538 1672 766 Kills 94 | . . 1 2 . 18 . 1 43 9 2 13 5 Allies Corrupted 2 | . . . . . . . . 1 . . 1 . Allies Melted . | . . . . . . . . . . . . . X0-1V1 Amusement Gains 307 | . 7 . 10 . 45 . 53 36 55 . 67 34 Good Acts 101 | . . 36 5 . 9 2 14 13 1 8 8 5 Bad Acts 93 | . . 47 3 . 9 2 7 5 5 3 1 11 Intel | -11 -10 -10 -7 -7 -5 -5 -5 -5 -5 -5 -5 -4 ------- Run | Yrd Mat Sub Rec Scr Fac Was Fac Ext Cet Arc Hub Fac Active Infowar (turns) 3005 | 42 1039 165 . 215 1156 109 12 . . . 71 196 A.S.S. 84 | . . . . . . . . . . . . 84 Structural 215 | . . . . 215 . . . . . . . . Seismic 2706 | 42 1039 165 . . 1156 109 12 . . . 71 112 Robot Analysis Total 1 | . 1 . . . . . . . . . . . Derelict Logs Recovered . | . . . . . . . . . . . . . Drone Launches 9 | . . . . . 3 . 6 . . . . . Drone Recoveries 6 | . . . . . 3 . 3 . . . . . Exploration | -11 -10 -10 -7 -7 -5 -5 -5 -5 -5 -5 -5 -4 ------------- Run | Yrd Mat Sub Rec Scr Fac Was Fac Ext Cet Arc Hub Fac Turns Passed 14676 | 122 1045 2110 264 3722 1540 124 1471 1293 327 1155 487 1016 Spaces Moved 8355 | 41 447 1170 148 2771 984 118 962 645 175 166 302 426 Core . | . . . . . . . . . . . . . Treads 3477 | 1 447 1170 148 1595 . . 27 22 4 38 . 25 Legs 40 | 40 . . . . . . . . . . . . Wheels 4011 | . . . . 349 984 118 935 623 171 128 302 401 Hover . | . . . . . . . . . . . . . Flight 827 | . . . . 827 . . . . . . . . Fastest Speed 32 | 120 160 160 160 32 90 96 96 109 130 130 120 100 Average Speed 131 | 120 160 160 160 124 113 96 110 132 140 155 136 149 Slowest Speed 320 | 160 160 160 160 240 140 96 250 240 240 240 140 320 Overloaded Moves . | . . . . . . . . . . . . . Propulsion Burnouts . | . . . . . . . . . . . . . Robots Hopped 1 | . . . . . 1 . . . . . . . Potential Cave-ins 2 | . . 2 . . . . . . . . . . Cave-ins Triggered . | . . . . . . . . . . . . . Exploration Rate (%) 55 | 3 84 49 38 87 31 95 50 74 74 85 42 14 Regions Visited 12 Branch Regions 7 Pre-discovered Areas 6 | . 2 . . 3 1 . . . . . . . Known Exits Taken 3 | . . . . 1 . . 1 . . . 1 . Unknown Exits Taken 7 | 1 1 1 1 . . . . 1 1 1 . . Scrap Searched 12 | . . . . 12 . . . . . . . . Spaces Dug 14 | . . . . . 5 . 5 . . . 4 . Terrain Destroyed 733 | . 26 165 . . 66 1 88 31 24 31 34 267 Melee 7 | . . . . . 2 . 5 . . . . . Projectile 243 | . . . . . 13 1 38 31 24 31 34 71 AOE 480 | . 26 165 . . 48 . 45 . . . . 196 Terrain Rammed . | . . . . . . . . . . . . . Walls Destroyed . | . . . . . . . . . . . . . Machines Disabled . | . . . . . . . . . . . . . Actions | -11 -10 -10 -7 -7 -5 -5 -5 -5 -5 -5 -5 -4 --------- Run | Yrd Mat Sub Rec Scr Fac Was Fac Ext Cet Arc Hub Fac Total 10970 | 89 667 1333 163 3036 1241 127 1179 865 224 1041 343 662 Wait 1449 | 29 113 44 . 209 82 2 59 29 3 819 9 51 Move 8342 | 40 446 1169 147 2770 982 117 961 644 174 165 301 426 Hop 1 | . . . . . 1 . . . . . . . Pick Up 131 | 1 16 15 1 23 14 2 8 14 6 9 2 20 Fast Attach 98 | 1 . . 1 6 18 . 17 15 7 10 2 21 Attach 66 | 2 1 3 . 5 13 2 6 10 . 3 4 17 Detach 23 | . . . . 1 5 . 4 4 . 1 . 8 Swap 77 | . 11 8 2 3 15 . 7 8 4 5 3 11 Drop 151 | 2 10 14 1 19 21 3 21 15 12 15 2 16 Fire 557 | 14 66 75 11 . 70 1 86 92 18 14 18 92 Melee 14 | . . . . . 4 . 9 1 . . . . Ram 3 | . . . . . . . 1 . . . 2 . Kick . | . . . . . . . . . . . . . Crush 7 | . 4 3 . . . . . . . . . . Escape Stasis 24 | . . . . . 16 . . 8 . . . . Rewire 25 | . . . . . . . . 25 . . . . Trap . | . . . . . . . . . . . . . Miscellaneous 2 | . . 2 . . . . . . . . . . Route ------- -11/Scrapyard -10/Materials (discovered 5 exits: [*Mat x2] / [*Min x2] / *Sub) -10/Subcaves (discovered 2 exits: Mat / *Rec) -7/Recycling (discovered 2 exits: Fac / *Scr) -7/Scraptown (discovered 2 exits: *Fac x2) -5/Factory (discovered 4 exits: *Fac / [*Upp] / Ext x2) -5/Waste -5/Factory (discovered 3 exits: *Fac x2 / *Ext) -5/Extension (discovered 2 exits: *Fac / *Cet) -5/Cetus (discovered 2 exits: *Fac / [*Arc]) -5/Archives (discovered 3 exits: *Fac / *Hub x2) -5/Hub_04(d) (discovered 2 exits: *Fac x2) -4/Factory (discovered 2 exits: Upp x2) History --------- Turn | Location | Event 18 | -11/Scrapyard | Discovered new exit (range 3) 123 | -11/Scrapyard | Entered Materials 123 | -10/Materials | Discovered new exit (range 15) 314 | -10/Materials | Build established: Mutant 411 | -10/Materials | Discovered new exit (range 12) 412 | -10/Materials | Destroyed 7 combat bots 589 | -10/Materials | Discovered new exit (range 4) 715 | -10/Materials | Repaired Lgt. Treads 743 | -10/Materials | Repaired Lgt. Treads 784 | -10/Materials | Discovered new exit (range 3) 1147 | -10/Materials | Discovered new exit (range 4) 1161 | -10/Materials | Prayed at D.C.S.S. Altar Unit 1168 | -10/Materials | Entered Subcaves 1169 | -10/Subcaves | Approached by a straggling Scientist 1304 | -10/Subcaves | Visited Clippyterm 1309 | -10/Subcaves | Learned Research security intel 1469 | -10/Subcaves | Energy generation permanently improved by X0-1V1 (+10; -100 max core) 1592 | -10/Subcaves | X0-1V1 mutated your Weapon slot to Propulsion slot 1630 | -10/Subcaves | Core integrity restored by X0-1V1 (+22) 1818 | -10/Subcaves | Discovered new exit (range 12) 1841 | -10/Subcaves | Core integrity fell below 50% 1872 | -10/Subcaves | X0-1V1 activates XOMVISION 2070 | -10/Subcaves | Visited 4L-MR0's lab 2215 | -10/Subcaves | X0-1V1 sent you into danger 2216 | -10/Subcaves | X0-1V1 sent allied H-61 Shepherd (x1) 2252 | -10/Subcaves | Core integrity restored by X0-1V1 (+22) 2258 | -10/Subcaves | X0-1V1 mutated your Propulsion slot to Utility slot 2273 | -10/Subcaves | X0-1V1 activates XOMVISION 2278 | -10/Subcaves | X0-1V1 rewrote H-61 Shepherd IFF filter 2288 | -10/Subcaves | Identified exit to Materials 2288 | -10/Subcaves | X0-1V1 revealed exit location to -8/Materials 2330 | -10/Subcaves | Core integrity restored by X0-1V1 (+30) 2368 | -10/Subcaves | X0-1V1 revealed exit location to -8/Materials 2410 | -10/Subcaves | Core integrity restored by X0-1V1 (+31) 2429 | -10/Subcaves | X0-1V1 mutated your Utility slot to Propulsion slot 2455 | -10/Subcaves | System corruption reached 10% 2457 | -10/Subcaves | X0-1V1 tapped a No Entrance sign 2518 | -10/Subcaves | X0-1V1 mutated your Propulsion slot to Utility slot 2534 | -10/Subcaves | A swath of the cavern ceiling suddenly collapsed 2542 | -10/Subcaves | X0-1V1 activates XOMVISION 2650 | -10/Subcaves | X0-1V1 mutated your Utility slot to Power slot 2763 | -10/Subcaves | X0-1V1 activates XOMVISION 2944 | -10/Subcaves | Ambushed by Subdweller buried in earth 3145 | -10/Subcaves | X0-1V1 rewrote H-61 Shepherd IFF filter 3201 | -10/Subcaves | X0-1V1 activates XOMVISION 3278 | -10/Subcaves | Entered Recycling 3293 | -7/Recycling | Core integrity permanently improved by X0-1V1 (+200) 3299 | -7/Recycling | Adv. Assault Cannon reconfigured into Item Mimic 3303 | -7/Recycling | X0-1V1 sent allied Chaos Knight (x1) 3306 | -7/Recycling | X0-1V1 sent you into danger 3337 | -7/Recycling | Identified exit to Factory 3337 | -7/Recycling | X0-1V1 revealed exit location to -5/Factory 3503 | -7/Recycling | Scanned before Scraplab entrance 3526 | -7/Recycling | Entered Scraplab 3538 | -7/Recycling | Discovered new exit (range 3) 3542 | -7/Recycling | Entered Scraptown 3542 | -7/Scraptown | System corruption cleaned by C-Scrubber 3760 | -7/Scraptown | Discovered exit to Factory (range 13) 3978 | -7/Scraptown | Visited Bundlers 4368 | -7/Scraptown | Visited Symbiants 4416 | -7/Scraptown | Visited UFD Registry 4416 | -7/Scraptown | Registered with UFD as "Kinetispreader" 4437 | -7/Scraptown | Visited Science Testing Area 4470 | -7/Scraptown | Visited Comm Corps 4515 | -7/Scraptown | Visited Cyclists 4526 | -7/Scraptown | Entered Cyclist Reading Room 4582 | -7/Scraptown | Visited Junk Repository 4644 | -7/Scraptown | Visited Chapter 10 4665 | -7/Scraptown | Visited DA-N13 Charitable Foundation 4671 | -7/Scraptown | Found DCF Scrap (31 items) 4753 | -7/Scraptown | Visited Cartography Club 4799 | -7/Scraptown | Visited Science Guys 4825 | -7/Scraptown | Visited Curators Association 5269 | -7/Scraptown | Learned location of Warlord (-5) 5269 | -7/Scraptown | Learned location of Hub_04(d) (-5) 5269 | -7/Scraptown | Learned location of Testing (-2) 5269 | -7/Scraptown | Learned 12 Research zone layouts 5269 | -7/Scraptown | Learned 12 Lower Caves zone layouts 5269 | -7/Scraptown | Learned 12 Upper Caves zone layouts 5269 | -7/Scraptown | Learned 16 Upper Caves zone layouts 5269 | -7/Scraptown | Learned 4 Armory zone layouts 5269 | -7/Scraptown | Learned Factory emergency access door positions 5269 | -7/Scraptown | Learned location of 3 exits from Lower Caves 5269 | -7/Scraptown | Learned location of 1 exit from Upper Caves 5269 | -7/Scraptown | Learned location of 2 exits from Upper Caves 5273 | -7/Scraptown | Found Deep Structural Scanner 5433 | -7/Scraptown | Visited LU-1G1's Boring Crew 5492 | -7/Scraptown | Discovered exit to Factory (range 12) 6726 | -7/Scraptown | Found Scrap Suit 7196 | -7/Scraptown | Met Optimus 7196 | -7/Scraptown | Accepted into 0bPrime 7264 | -7/Scraptown | Entered Factory 7264 | -5/Factory | Evolved 10 slots: Propulsion x3, Utility x4, Weapon x3 7265 | -5/Factory | Identified exit to Extension 7290 | -5/Factory | KI resistance permanently improved by X0-1V1 (+10%; -100 max core) 7543 | -5/Factory | X0-1V1 redirected Transport squads to designated parking area 7613 | -5/Factory | X0-1V1 sent someone to keep an eye on you 7853 | -5/Factory | X0-1V1 activates XOMVISION 7859 | -5/Factory | Loaded intel: 8 recycling unit locations 7930 | -5/Factory | Noticed UFD Elites at a Recycling Unit 8061 | -5/Factory | X0-1V1 mutated your Utility slot to Propulsion slot 8071 | -5/Factory | Discovered new exit (range 7) 8184 | -5/Factory | X0-1V1 sent you into danger 8355 | -5/Factory | Build established: Scavenger-Gunner 8382 | -5/Factory | X0-1V1 revealed exit location to -5/Extension 8397 | -5/Factory | Scrapoid reinforcements arrived 8466 | -5/Factory | Discovered new exit (range 7) 8497 | -5/Factory | Learned location of Protoforge (-3) 8575 | -5/Factory | Lost 4 allies 8733 | -5/Factory | Build established: Scavenger-Scrapper 8751 | -5/Factory | Found Scrap Suit 8786 | -5/Factory | X0-1V1 foreshadows a heat wave 8804 | -5/Factory | Sucked down chute 8804 | -5/Factory | Entered Waste 8805 | -5/Waste | Met a frightened Derelict 8819 | -5/Waste | EMP discharged 8819 | -5/Waste | System corruption reached 10% 8830 | -5/Waste | Spotted C-40 Crusher 8832 | -5/Waste | Spotted C-40 Crusher 8833 | -5/Waste | Spotted C-40 Crusher 8856 | -5/Waste | Sensors blinded by X0-1V1 8867 | -5/Waste | Spotted C-40 Crusher 8877 | -5/Waste | Spotted C-40 Crusher 8894 | -5/Waste | Identified exit to Factory 8894 | -5/Waste | X0-1V1 revealed exit location to -5/Factory 8919 | -5/Waste | EMP discharged 8928 | -5/Waste | Entered Factory 8987 | -5/Factory | X0-1V1 released a cloud of subatomizers 9011 | -5/Factory | Garrison activated, responded to threat 9256 | -5/Factory | X0-1V1 upgraded hostiles (x1) 9304 | -5/Factory | Loaded intel: 8 recycling unit locations 9528 | -5/Factory | First assault squad dispatched 9641 | -5/Factory | Sterilization system engaged 9641 | -5/Factory | Non-combat units ordered to evacuate 9688 | -5/Factory | Discovered new exit (range 13) 9741 | -5/Factory | Combat units ordered to evacuate 9831 | -5/Factory | X0-1V1 redirected Transport squads to designated parking area 9832 | -5/Factory | X0-1V1 enhanced Transport squad support 9882 | -5/Factory | Discovered exit to Extension (range 25) 9930 | -5/Factory | X0-1V1 sent you to a vault 9941 | -5/Factory | Ambient heat levels rising (+10) 9970 | -5/Factory | Discovered new exit (range 41) 10084 | -5/Factory | X0-1V1 activates XOMVISION 10091 | -5/Factory | Ambient heat levels rising (+10) 10183 | -5/Factory | Lost 3 allies 10187 | -5/Factory | Build established: Scavenger-Tank 10241 | -5/Factory | Ambient heat levels rising (+10) 10391 | -5/Factory | Ambient heat levels rising (+10) 10394 | -5/Factory | X0-1V1 added 0b10 threat records associated with you (major) 10399 | -5/Factory | Entered Extension 10444 | -5/Extension | X0-1V1 mutated your Propulsion slot to Weapon slot 10483 | -5/Extension | X0-1V1 vaporized surrounding terrain (radius 22) 10515 | -5/Extension | Rnf. Fission Core reconfigured into Item Mimic 10584 | -5/Extension | Rescued a captive Derelict 10586 | -5/Extension | Rescued a captive Derelict 10780 | -5/Extension | X0-1V1 activates XOMVISION 10792 | -5/Extension | X0-1V1 added 0b10 threat records associated with you (considerable) 10853 | -5/Extension | Rescued a captive Derelict 10855 | -5/Extension | Scrapoids reinforcements arrived? 10870 | -5/Extension | Rescued a captive Derelict 11067 | -5/Extension | Rescued A7 11077 | -5/Extension | Spotted B-75 Beast 11084 | -5/Extension | Allies destroyed B-75 Beast 11087 | -5/Extension | Spotted B-75 Beast 11099 | -5/Extension | Destroyed B-75 Beast 11115 | -5/Extension | Found Scrap Suit 11294 | -5/Extension | X0-1V1 opened Sealed Heavy Doors 11294 | -5/Extension | Rescued a captive Derelict 11294 | -5/Extension | Rescued a captive Derelict 11402 | -5/Extension | Identified exit to Factory 11402 | -5/Extension | X0-1V1 revealed exit location to -4/Factory 11407 | -5/Extension | Build established: Scavenger-Scrapper 11449 | -5/Extension | Disrupted transfer network 11501 | -5/Extension | Discovered new exit (range 16) 11515 | -5/Extension | Disrupted transfer network 11555 | -5/Extension | Lost 4 allies 11599 | -5/Extension | First assault squad dispatched 11692 | -5/Extension | Entered Cetus 11692 | -5/Cetus | Accompanied by 7 allies (A7) 11697 | -5/Cetus | Acquired a Cetus Manufacturing Module code from A7 11709 | -5/Cetus | Spotted Cetus Guard 11709 | -5/Cetus | Spotted Cetus Guard 11710 | -5/Cetus | Destroyed Cetus Guard 11712 | -5/Cetus | Spotted Cetus Guard 11714 | -5/Cetus | Spotted Cetus Guard 11722 | -5/Cetus | Destroyed Cetus Guard 11722 | -5/Cetus | Destroyed Cetus Guard 11728 | -5/Cetus | Allies destroyed Cetus Guard 11757 | -5/Cetus | Lost 4 allies 11830 | -5/Cetus | Started Cetus Manufacturing Module 11843 | -5/Cetus | Escorted A7 to Cetus Mainframe 11855 | -5/Cetus | Manufactured an Enhanced Grunt 11870 | -5/Cetus | Discovered new exit (range 15) 11880 | -5/Cetus | Manufactured an Enhanced Grunt 11888 | -5/Cetus | X0-1V1 added 0b10 threat records associated with you (major) 11894 | -5/Cetus | Spotted Cetus Guard 11895 | -5/Cetus | Spotted Cetus Guard 11896 | -5/Cetus | Destroyed Cetus Guard 11897 | -5/Cetus | Allies destroyed Cetus Guard 11897 | -5/Cetus | Spotted Cetus Guard 11898 | -5/Cetus | High security lockdown imminent 11898 | -5/Cetus | Allies destroyed Cetus Guard 11898 | -5/Cetus | Spotted Cetus Guard 11904 | -5/Cetus | Allies destroyed Cetus Guard 11905 | -5/Cetus | Manufactured an Enhanced Grunt 11915 | -5/Cetus | Discovered exit to Factory (range 16) 11923 | -5/Cetus | Met Revision 17 11930 | -5/Cetus | Manufactured an Enhanced Grunt 11955 | -5/Cetus | Manufactured an Enhanced Grunt 11978 | -5/Cetus | High security lockdown engaged 11999 | -5/Cetus | Core integrity restored by X0-1V1 (+290) 12019 | -5/Cetus | Entered Archives 12019 | -5/Archives | Accompanied by 8 allies (A7) 12024 | -5/Archives | Received a hacking code to weaken MAIN.C 12083 | -5/Archives | Found Prototype Device 12083 | -5/Archives | Identified Exp. Thermal Shield 12098 | -5/Archives | Discovered new exit (range 14) 12119 | -5/Archives | Discovered new exit (range 16) 12144 | -5/Archives | X0-1V1 activates XOMVISION 12149 | -5/Archives | Discovered exit to Factory (range 16) 12669 | -5/Archives | X0-1V1 vaporized surrounding terrain (radius 18) 12698 | -5/Archives | X0-1V1 activates XOMVISION 13061 | -5/Archives | X0-1V1 activates XOMVISION 13169 | -5/Archives | X0-1V1 vaporized surrounding terrain (radius 18) 13174 | -5/Archives | Entered Hub_04(d) 13174 | -5/Hub_04(d) | Accompanied by 5 allies 13276 | -5/Hub_04(d) | Spotted B-75 Beast 13286 | -5/Hub_04(d) | X0-1V1 downgraded hostiles (x1) 13288 | -5/Hub_04(d) | Allies destroyed B-75 Beast 13321 | -5/Hub_04(d) | Lost 3 allies 13522 | -5/Hub_04(d) | X0-1V1 destroyed Network Hub 13522 | -5/Hub_04(d) | Network Hub disabled 13557 | -5/Hub_04(d) | Network Hub disabled 13579 | -5/Hub_04(d) | Spotted Lightning 13579 | -5/Hub_04(d) | Spotted Lightning 13584 | -5/Hub_04(d) | Disrupted transfer network 13589 | -5/Hub_04(d) | Spotted Lightning 13623 | -5/Hub_04(d) | X0-1V1 sent allied Guerrilla (x3) 13623 | -5/Hub_04(d) | Allies destroyed Lightning 13623 | -5/Hub_04(d) | Spotted Lightning 13623 | -5/Hub_04(d) | Spotted Lightning 13625 | -5/Hub_04(d) | Spotted Lightning 13630 | -5/Hub_04(d) | Lost 4 parts (1p1n2w) 13637 | -5/Hub_04(d) | Spotted Lightning 13639 | -5/Hub_04(d) | Spotted Lightning 13645 | -5/Hub_04(d) | Spotted Lightning 13647 | -5/Hub_04(d) | Discovered exit to Factory (range 11) 13654 | -5/Hub_04(d) | X0-1V1 upgraded hostiles (x2) 13660 | -5/Hub_04(d) | Discovered exit to Factory (range 10) 13661 | -5/Hub_04(d) | Entered Factory 13661 | -4/Factory | Evolved 2 slots: Utility x2 13666 | -4/Factory | Lost 4 parts (1p1u2w) 13724 | -4/Factory | Loaded intel: 8 recycling unit locations 13794 | -4/Factory | X0-1V1 announced a LAN party 13857 | -4/Factory | Destroyed 8 combat bots 13863 | -4/Factory | Lost 5 parts (3u2w) 13953 | -4/Factory | Scrapoids reinforcements arrived? 13984 | -4/Factory | Build established: Scavenger-Tank 14059 | -4/Factory | Found Scrap Suit 14088 | -4/Factory | Lost 3 allies 14189 | -4/Factory | X0-1V1 added 0b10 threat records associated with you (major) 14197 | -4/Factory | Spotted B-86 Titan 14207 | -4/Factory | Allies destroyed B-86 Titan 14225 | -4/Factory | Found Hvy. Reflective Plating 14231 | -4/Factory | P-70 Sage assimilated allied 04F12-D 14273 | -4/Factory | X0-1V1 sent someone to keep an eye on you 14302 | -4/Factory | Build established: Scavenger-Scrapper 14344 | -4/Factory | Identified exit to Upper Caves 14411 | -4/Factory | First assault squad dispatched 14470 | -4/Factory | X0-1V1 sent hostile G-67 Veteran (x5) 14472 | -4/Factory | X0-1V1 downgraded hostiles (x2) 14495 | -4/Factory | Destroyed 7 combat bots 14593 | -4/Factory | Found Prototype Device 14593 | -4/Factory | Identified Active Sensor Suite 14627 | -4/Factory | Destroyed 7 combat bots 14637 | -4/Factory | Lost 6 parts (2p1n2u1w) 14647 | -4/Factory | Cargo convoy interrupted 14652 | -4/Factory | Spotted Executioner 14659 | -4/Factory | System corruption reached 10% 14677 | -4/Factory | Self-destructed Last Messages --------------- 14665_ Penetrated by Slug. 14667_ Ovr. Huge Scrapsphere repairs itself (+7). 14667_ Acquired 15 matter. 14667_ Penetrated by Slug. 14669_ Slug penetrates X-72 Disruptor. 14669_ Slug penetrates H-77 Assassin. 14669_ Slug penetrates X-72 Disruptor. 14670_ Penetrated by Slug. 14670_ K-01 Serf collects debris. 14671_ U-05 Engineer builds a Wall. 14673_ Slug penetrates Wall. 14673_ Penetrated by Slug. 14673_ Slug penetrates Wall. 14673_ K-01 Serf collects debris. 14674_ Penetrated by Slug. 14675_ Slug penetrates Wall. 14675_ Penetrated by Slug. 14675_ Slug penetrates Wall. 14677_ Penetrated by Slug. Map ----- +----------------------------------------------------+ | ????????????????????"""??????????????????????????? | | ????????????????????"Y???????????????????????????? | | ????????????????????"""??????????????????????????? | | ?????????????????????????????????????????????????? | | ?????????????????????????????????????????????????? | | ?????????????????????????????????????????????????? | | ?????????????????????????????????????????????????? | | ?????????????????????????????????????????????????? | | ?????????????????????????????o???????????????????? | | ?????????????????????????????????????????????????? | | ????????????????????????? ?????????????????????? | | ????????????????????????" ???????????????????? | | ???????????????????????? #??????????????????? | | ???????????????????????? #??????????????????? | | ???????????????????????? #??????????????????? | | ???????????????????????? [#??????????????????? | | ????????????????????????# #??????????????????? | | ????????????????????????# #??????????????????? | | ????????????????????????# #??????????????????? | | ????????????????????????# #??????????????????? | | ????????????????????????# #??????????????????? | | ???????????"u?????????### #????????#?????????? | | ????????? ? ????????? ; #??????? ???????? | | ????????? #????####; ###???? ?????? | | ????????? ##??# # #??? ?????? | | ???????? # ####; @ #?? ????? | | ???????? !* #? ????? | | ??????? !* !!* # #???? | | ??????? % * ! = + !#???? | | ??????? **% ! # #???? | | ??????? k w*** ! #? #???? | | ??????? # ##;#;!=%=! #? #???? | | ???????? ??###; = [ # ##??? | | ????????# # ???####;!%= ## ?? "#??? | | ????????? ??? ?????# ; #############""#### | | ???????????????????# w *! # [ ! | | ???????????????????##### !%= # ! | | ???????????????????# ; !x %/ | | ???????????????????##### # =! | | ???????????????????????# = #u = | | ???????????????????????# !!h | | ???????????????????????#!!]! hk ! | | ???????????????????????#!]%=!E%== | | ???????????????????????#!==!! % # """### | | ???????????????????????# =!!&% =% ##?? | | ???????????????????????# ! # #??? | | ???????????????????????+ #####??? | | ???????????????????????# % % ! ##??????? | | ???????????????????????# * == = #???????? | | ???????????????????????# ##??????? | +----------------------------------------------------+ Best States ------------- Heat Dissipation 116 Energy Generation 60 Energy Capacity 1330 Matter Stores 700 Matter Capacity 800 Sight Range 22 Robot Scan Range 20 Terrain Scan Density 10 Additional Mass Support 6 Armor Coverage 1050 Resistance: KI 10 Resistance: TH 25 Propulsion Shielding 90 Weapon Cycling 20 Phase Shifting 10 Evasion (%) 63 Recoil Reduction 3 Kinecelleration 30 Offensive Hacking 12 Item Schematics ----------------- None Robot Schematics ------------------ None Fabricated ------------ Nothing Repaired ---------- Lgt. Treads | 17% | -10/Materials Lgt. Treads | 38% | -10/Materials Studied --------- None Alien Tech Used ----------------- None Achievements -------------- Into The Furnace Challenges ------------ None Game ------ Seed GatlingDeliveryStrikerail Manual? 0 Play Time 02:13:15 Cumulative 621.6 hours Start 2026.07.30 @ 03:57:02 End 2026.07.31 @ 03:59:51 Sessions 13 Manual Loads 0 Difficulty Rogue Special Mode None Game No. 555 Rogue 519 Adventurer 36 Explorer 0 Win Type - Total 8 Types 2/2/0/1/1/0/0/2/0/0 Lore% 84 Gallery% 74 Achievement% 67 Wizard Run 0 Options --------- Layout 2 ASCII 0 Keyboard 0 Movement Numpad Keybinds 0 Fullscreen 1 Font 48/Smallcaps Map View 50x44 Zoom Use 0% Tactical HUD 1 Map Filters NONE Filters NONE Steam 1 RUN: 932a25f6-035d-491d-8878-42ddf9e43942